Cogmind - Beta 14 @@@ ROGUE MODE // 2024.09.19 @ 17:35:03 Player: Bunch Result: Destroyed by D-53 Grenadier with Mini Grenade Launcher Performance ------------- Evolutions (0) 0 Regions Visited (2) 400 Robots Destroyed (19) 95 Value Destroyed (430) 430 Prototype IDs (0) 0 Alien Tech Used (0) 0 Bonus (0) 0 TOTAL SCORE: 925 Bonus ------- None Cogmind --------- Core Integrity 0/250 Matter 271/300 Energy 246/250 System Corruption 0% Temperature Cool (2) Movement Walking (260) Ox2 Location -10/Mines Parts ------- > --- POWER (1) -------- Ion Engine > --- PROPULSION (2) --- Aluminum Leg Aluminum Leg > --- UTILITY (2) ------ High-capacity Storage Unit Signal Interpreter > --- WEAPON (2) ------- Light Assault Rifle Grenade Launcher > --- INVENTORY (20) --- Aluminum Leg Medium Storage Unit Peak State ------------ > --- POWER ------------ Light Ion Engine > --- PROPULSION ------- Compact Wheel Compact Wheel > --- UTILITY ---------- Large Storage Unit Signal Interpreter > --- WEAPON ----------- EM Pulse Gun Assault Rifle > --- INVENTORY -------- Light Ion Engine Aluminum Leg Aluminum Leg Medium Storage Unit Light Assault Rifle Grenade Launcher [Rating: 7] Favorites ----------- Power Ion Engine Engine Ion Engine Propulsion Aluminum Leg Leg Aluminum Leg Wheel Compact Wheel Utility Signal Interpreter Storage Large Storage Unit Processor Signal Interpreter Weapon Assault Rifle Energy Gun EM Pulse Gun Ballistic Gun Assault Rifle Launcher Grenade Launcher Build | -11 -10 -10 ------- Run | Yrd Mat Min Slots Evolved . | . . . Power . | . . . Propulsion . | . . . Utility . | . . . Weapon . | . . . Parts Attached 18 | 6 7 5 Power 4 | 1 1 2 Engine 4 | 1 1 2 Core . | . . . Reactor . | . . . Propulsion 6 | 2 2 2 Treads . | . . . Leg 4 | . 2 2 Wheel 2 | 2 . . Hover . | . . . Flight . | . . . Utility 4 | 1 3 . Device . | . . . Storage 3 | 1 2 . Processor 1 | . 1 . Hackware . | . . . Protection . | . . . Artifact . | . . . Weapon 4 | 2 1 1 Energy Gun 1 | 1 . . Energy Cannon . | . . . Ballistic Gun 2 | 1 1 . Ballistic Cannon . | . . . Launcher 1 | . . 1 Special Weapon . | . . . Impact Weapon . | . . . Slashing Weapon . | . . . Piercing Weapon . | . . . Special Melee Weapon . | . . . Unidentified Prototypes . | . . . Parts Lost 5 | . 3 2 Power 2 | . 1 1 Propulsion 1 | . . 1 Utility . | . . . Weapon 2 | . 2 . Highest Loss Streak 4 | . 2 4 To Critical Strikes . | . . . Average Slot Usage (%) 88 | . 89 86 Engine 11 | . 13 4 Leg 21 | . 19 26 Wheel 6 | . 8 . Storage 14 | . 14 14 Processor 11 | . 11 14 Energy Gun 2 | . 4 . Ballistic Gun 16 | . 17 14 Launcher 3 | . . 12 Peak Build Rating 7 | 6 7 7 Average Rating 6 | 4 6 6 On Entrance 3 | . 6 5 Naked Turns . | . . . Heaviest Build 49 | 12 48 49 Greatest Support 32 | 32 32 20 Greatest Overweight (x) 4 | . 2 4 Average Overweight (x) . | . . 2 Largest Inventory Capacity 20 | 8 20 20 Average Capacity 16 | 6 15 20 Most Carried 8 | 4 8 3 Average Carried 3 | 2 4 2 Final Capacity 20 | 8 20 20 Final Carried 4 | 4 4 2 Class Distribution -------------------- 100% | Mutant Dominant Class ---------------- Mutant | -10/Materials Mutant | -10/Mines Resources | -11 -10 -10 ----------- Run | Yrd Mat Min Matter Collected 593 | 260 199 134 Remotely . | . . . Salvage Created 544 | . 399 145 Parts 34 | . 23 11 Haulers Intercepted . | . . . Recyclers Shooed 1 | . 1 . Parts Field Recycled . | . . . Retrieved Matter . | . . . Parts Self-Destructed . | . . . Prevented . | . . . Kills | -11 -10 -10 ------- Run | Yrd Mat Min Combat Hostiles Destroyed 17 | . 12 5 Guns 10 | . 10 . AOE 7 | . 2 5 Classes Destroyed 4 | . 3 1 Recycler 1 | . . 1 Watcher 1 | . 1 . Swarmer 9 | . 6 3 Grunt 8 | . 6 2 Best Kill Streak 3 | . 3 3 Combat Bots Only 3 | . 3 3 Max Kills in Single Turn 2 | . 2 2 Gunslinging . | . . . Exploded 2 | . 2 2 Melee . | . . . Uniques/NPCs Destroyed . | . . . Combat | -11 -10 -10 -------- Run | Yrd Mat Min Hostile Shots Fired 105 | . 68 37 Missed 26 | . 14 12 Damage Taken 966 | . 616 350 Core 278 | . 147 131 Absorbed by Shields . | . . . Core Remaining (%) 100 | 100 . . Volleys Fired 62 | . 44 18 Largest 2 | . 2 2 Hottest 60 | . 60 50 Shots Fired 99 | . 70 29 Gun 88 | . 70 18 Cannon . | . . . Launcher 11 | . . 11 Special . | . . . Kinetic 76 | . 58 18 Thermal . | . . . Explosive 11 | . . 11 Electromagnetic 12 | . 12 . Robot Hit Streak 11 | . 11 8 Robot Miss Streak 3 | . 3 2 Penetration Max . | . . . Secondary Targets . | . . . Shots Hit Robots 58 | . 45 13 Core Hits 32 | . 21 11 Critical Kills . | . . . Critical Parts Destroyed 1 | . 1 . Critical Strikes 1 | . 1 . Destroy 1 | . 1 . Melee Attacks . | . . . Impact . | . . . Slashing . | . . . Piercing . | . . . Sneak Attacks . | . . . Combat Hostiles . | . . . Follow-up Attacks . | . . . Damage Inflicted 1079 | . 664 415 Guns 624 | . 552 72 Cannons . | . . . Explosions 446 | . 112 334 Melee . | . . . Ramming 9 | . . 9 Kinetic 492 | . 420 72 Thermal 112 | . 112 . Explosive 334 | . . 334 Electromagnetic 132 | . 132 . Impact . | . . . Slashing . | . . . Piercing . | . . . Highest Corruption . | . . . Average Corruption . | . . . Corruption Purged . | . . . Corruption Blocked . | . . . Overload Shots . | . . . Overflow Damage . | . . . Projectiles . | . . . Explosions . | . . . Melee . | . . . Knockbacks . | . . . Impact . | . . . Kinetic . | . . . Secondary . | . . . Self-Inflicted Damage 36 | . 36 . Shots 1 | . 1 . Rammed . | . . . Targets Rammed 2 | . . 2 Kicked 2 | . . 2 Crushed . | . . . Highest Temperature 36 | . 36 15 Average Temperature 15 | . 16 8 Received Heat Transfer 393 | . 246 147 Siege Activations . | . . . Robots Corrupted . | . . . Combat Hostiles . | . . . Parts Fried . | . . . Impact Corruptions . | . . . Robots Melted . | . . . Combat Hostiles . | . . . Parts Melted . | . . . Heat Transferred 150 | . 150 . Parts Sabotaged . | . . . Parts Stolen . | . . . Parts Stripped . | . . . Power Chain Reactions 1 | . 1 . Alert | -11 -10 -10 ------- Run | Yrd Mat Min Peak Influence 220 | . 220 174 Initial 19 | . . 19 Average 116 | . 127 119 Maximum Alert Level 1 | . 1 . Low Security (%) 83 | 100 74 100 Level 1 16 | . 25 . Level 2 . | . . . Level 3 . | . . . Level 4 . | . . . Level 5 . | . . . High Security . | . . . Max Security . | . . . Squads Dispatched 3 | . 3 . Investigation 1 | . 1 . Extermination . | . . . Reinforcement 2 | . 2 . Assault . | . . . Garrison . | . . . Intercept . | . . . Searches Triggered . | . . . Construction Impeded . | . . . Haulers Reinforced . | . . . Active Scanning Responses . | . . . Cargo Convoy Interrupts . | . . . Stealth | -11 -10 -10 --------- Run | Yrd Mat Min Distress Signals 3 | . 3 . Communications Jammed . | . . . Distress Signals . | . . . Times Spotted 24 | . 18 6 Peak Tracking Total 4 | . 4 3 Tactical Retreats 1 | . 1 . Traps | -11 -10 -10 ------- Run | Yrd Mat Min Traps Triggered . | . . . Indirectly . | . . . Trap Hack Attempts . | . . . Triggered . | . . . Disarmed . | . . . Reprogrammed . | . . . Reused . | . . . Traps Extracted . | . . . Installed . | . . . Triggered . | . . . Machines | -11 -10 -10 ---------- Run | Yrd Mat Min Machines Disabled 2 | . 2 . Max in Single Turn 1 | . 1 . Machines Repaired . | . . . Machines Dismantled . | . . . Machines Sabotaged . | . . . Overloaded Fab Kills . | . . . Hacking | -11 -10 -10 --------- Run | Yrd Mat Min Machines Accessed 4 | . 4 . Terminals 4 | . 4 . Fabricators . | . . . Repair Stations . | . . . Recycling Units . | . . . Scanalyzers . | . . . Garrison Access . | . . . Total Hacks 8 | . 8 . Successful 2 | . 2 . Failed 6 | . 6 . Catastrophic . | . . . Database Lockouts . | . . . Manual . | . . . Terminals 8 | . 8 . Fabricators . | . . . Repair Stations . | . . . Recycling Units . | . . . Scanalyzers . | . . . Garrison Access . | . . . Terminal Hacks 2 | . 2 . Locate Traps 1 | . 1 . Zone Layout 1 | . 1 . Fabricator Hacks . | . . . Repair Station Hacks . | . . . Recycling Unit Hacks . | . . . Scanalyzer . | . . . Garrison Access Hacks . | . . . Unauthorized Hacks . | . . . Terminals . | . . . Fabricators . | . . . Repair Stations . | . . . Recycling Units . | . . . Scanalyzers . | . . . Garrison Access . | . . . Data Cores Recovered . | . . . Used . | . . . Hacking Detections 3 | . 3 . Full Trace Events 1 | . 1 . Feedback Events . | . . . Feedback Blocked . | . . . Robot Schematics Acquired . | . . . Robots Built . | . . . Authchips . | . . . Time . | . . . Total Robot Build Rating . | . . . Part Schematics Acquired . | . . . Parts Built . | . . . Authchips . | . . . Time . | . . . Total Part Build Rating . | . . . Parts Repaired . | . . . Time . | . . . Parts Recycled . | . . . Recycled Matter . | . . . Retrieved Matter . | . . . Retrieved Components . | . . . Parts Scanalyzed . | . . . Part Schematics Acquired . | . . . Parts Damaged . | . . . Bothacking | -11 -10 -10 ------------ Run | Yrd Mat Min Used RIF Installer . | . . . Robots Hacked . | . . . Non-combat . | . . . Combat . | . . . Robot Hacks Applied . | . . . Relay Couplers Released . | . . . Fabnet Peak Effective % . | . . . Robots Rewired . | . . . Allies Hacked . | . . . Hacks Repelled . | . . . Allies | -11 -10 -10 -------- Run | Yrd Mat Min Total Allies . | . . . Largest Group . | . . . Highest-Rated Group . | . . . Highest-Rated Ally . | . . . Total Orders . | . . . Ally Attacks . | . . . Total Damage . | . . . Kills . | . . . Allies Corrupted . | . . . Allies Melted . | . . . Intel | -11 -10 -10 ------- Run | Yrd Mat Min Robot Analysis Total . | . . . Derelict Logs Recovered . | . . . Drone Launches . | . . . Drone Recoveries . | . . . Exploration | -11 -10 -10 ------------- Run | Yrd Mat Min Turns Passed 1258 | 88 814 356 Spaces Moved 576 | 75 395 106 Core 5 | 5 . . Treads . | . . . Legs 326 | . 220 106 Wheels 245 | 70 175 . Hover . | . . . Flight . | . . . Fastest Speed 50 | 50 100 260 Average Speed 170 | 96 157 270 Slowest Speed 400 | 100 260 400 Overloaded Moves . | . . . Propulsion Burnouts . | . . . Robots Hopped . | . . . Cave-ins Triggered . | . . . Exploration Rate (%) 29 | 5 59 24 Regions Visited 2 Branch Regions 1 Pre-discovered Areas . | . . . Known Exits Taken 1 | . 1 . Unknown Exits Taken 1 | 1 . . Scrap Searched 1 | . . 1 Spaces Dug . | . . . Terrain Destroyed 76 | . 2 74 Melee . | . . . Projectile . | . . . AOE 76 | . 2 74 Terrain Rammed . | . . . Walls Destroyed . | . . . Machines Disabled . | . . . Actions | -11 -10 -10 --------- Run | Yrd Mat Min Total 760 | 90 522 148 Wait 78 | . 63 15 Move 574 | 74 394 106 Hop . | . . . Pick Up 20 | 10 8 2 Fast Attach . | . . . Attach 15 | 6 5 4 Detach . | . . . Swap 3 | . 2 1 Drop 6 | . 6 . Fire 62 | . 44 18 Melee . | . . . Ram . | . . . Kick 2 | . . 2 Crush . | . . . Escape Stasis . | . . . Rewire . | . . . Trap . | . . . Miscellaneous . | . . . Route ------- -11/Scrapyard -10/Materials (discovered 2 exits: *Mat / *Min) -10/Mines (discovered 2 exits: *Mat / [*Sub]) History --------- Turn | Location | Event 20 | -11/Scrapyard | Discovered new exit (range 16) 89 | -11/Scrapyard | Entered Materials 310 | -10/Materials | Build established: Mutant 521 | -10/Materials | Discovered new exit (range 4) 684 | -10/Materials | Core integrity fell below 50% 823 | -10/Materials | Discovered new exit (range 14) 901 | -10/Materials | Identified exit to Mines 903 | -10/Materials | Entered Mines 904 | -10/Mines | Assembled infested the area 943 | -10/Mines | Core integrity fell below 20% 959 | -10/Mines | Lost 4 parts (2p1n1w) 1238 | -10/Mines | Discovered new exit (range 5) 1259 | -10/Mines | Discovered new exit (range 7) 1259 | -10/Mines | Identified exit to Materials 1259 | -10/Mines | Destroyed by D-53 Grenadier with Mini Grenade Launcher Last Messages --------------- 01085_ R-06 Scavenger collects Flight Unit. 01088_ Acquired Ion Engine. 01089_ R-06 Scavenger collects Lgt. Ion Engine. 01092_ R-06 Scavenger collects Lgt. Assault Rifle. 01122_ The unstable cave ceiling collapses. 01122_ R-06 Scavenger destroyed. 01133_ The unstable cave ceiling collapses. 01136_ Acquired 77 matter. 01137_ The unstable cave ceiling collapses. 01141_ R-06 Scavenger collects Lgt. Assault Rifle. 01145_ R-06 Scavenger collects Lgt. Ion Engine. 01148_ R-06 Scavenger collects Sml. Storage Unit. 01151_ R-06 Scavenger collects Lgt. Assault Rifle. 01159_ Acquired 9 matter. 01161_ The unstable cave ceiling collapses. 01217_ K-01 Serf collects debris. 01238_ EXIT=FOUND 01252_ T-07 Excavator is excavating. 01259_ EXIT=FOUND 01259_ EXIT=IDENTIFIED: MATERIALS Map ----- +----------------------------------------------------+ | | | | | | | | | | | | | | | | | | | | | | | ?????????????????????????????????????????????????? | | ?????????????????????????????????????????????????? | | ?????????????????????????????????????????????????? | | ??????????????????###????????????????????????????? | | ?????????????????# #????????????????????????????? | | ??????? #??????## ????????????????????????????? | | ????? ##??### #????????????????????????????? | | ????? ### #??######????????????????????? | | ????? #??# #